Workbook

Sheet Freight & Forwarding
A1: Variable | B1: Freight & Forwarding
A3: Summer av Value | B3: Kolonneetiketter
A4: Radetiketter | B4: ACC Ltd | C4: Ambuja Cement | D4: JK Lakshmi Cement | E4: Ultratech Cement
A5: 2011 | B5: 20 | C5: 23 | D5: 20 | E5: 22
A6: 2012 | B6: 20 | C6: 23 | D6: 19 | E6: 20
A7: 2013 | B7: 21 | C7: 25 | D7: 21 | E7: 21
A8: 2014 | B8: 22 | C8: 24 | D8: 22 | E8: 23
A9: 2015 | B9: 23 | C9: 27 | D9: 22 | E9: 24

Sheet Other variable cost
A1: Variable | B1: Other variable cost
A3: Summer av Value | B3: Kolonneetiketter
A4: Radetiketter | B4: ACC Ltd | C4: Ambuja Cement | D4: JK Lakshmi Cement | E4: Ultratech Cement
A5: 2011 | B5: 15 | C5: 11 | D5: 23 | E5: 16
A6: 2012 | B6: 18 | C6: 9 | D6: 25 | E6: 17
A7: 2013 | B7: 22 | C7: 13 | D7: 26 | E7: 18
A8: 2014 | B8: 20 | C8: 12 | D8: 30 | E8: 19
A9: 2015 | B9: 19 | C9: 11 | D9: 29 | E9: 18

Sheet Power & Fuel
A1: Variable | B1: Power & Fuel
A3: Summer av Value | B3: Kolonneetiketter
A4: Radetiketter | B4: ACC Ltd | C4: Ambuja Cement | D4: JK Lakshmi Cement | E4: Ultratech Cement
A5: 2011 | B5: 23 | C5: 23 | D5: 30 | E5: 23
A6: 2012 | B6: 21 | C6: 24 | D6: 24 | E6: 24
A7: 2013 | B7: 21 | C7: 22 | D7: 20 | E7: 21
A8: 2014 | B8: 21 | C8: 23 | D8: 21 | E8: 20
A9: 2015 | B9: 20 | C9: 22 | D9: 21 | E9: 21

Sheet Profit
A1: Variable | B1: Profit
A3: Summer av Value | B3: Kolonneetiketter
A4: Radetiketter | B4: ACC Ltd | C4: Ambuja Cement | D4: JK Lakshmi Cement | E4: Ultratech Cement
A5: 2011 | B5: 15 | C5: 18 | D5: 8 | E5: 17
A6: 2012 | B6: 15 | C6: 19 | D6: 12 | E6: 17
A7: 2013 | B7: 7 | C7: 13 | D7: 14 | E7: 8
A8: 2014 | B8: 8 | C8: 14 | D8: 8 | E8: 9
A9: 2015 | B9: 8 | C9: 10 | D9: 10 | E9: 9

Sheet Fixed Cost
A1: Variable | B1: Fixed Cost
A3: Summer av Value | B3: Kolonneetiketter
A4: Radetiketter | B4: ACC Ltd | C4: Ambuja Cement | D4: JK Lakshmi Cement | E4: Ultratech Cement
A5: 2011 | B5: 27 | C5: 25 | D5: 19 | E5: 24
A6: 2012 | B6: 26 | C6: 25 | D6: 20 | E6: 22
A7: 2013 | B7: 29 | C7: 27 | D7: 19 | E7: 22
A8: 2014 | B8: 29 | C8: 27 | D8: 19 | E8: 24
A9: 2015 | B9: 30 | C9: 30 | D9: 18 | E9: 24

Sheet Ark2
A3: Summer av Value | B3: Kolonneetiketter
A4: Radetiketter | B4: 2011 | C4: 2012 | D4: 2013 | E4: 2014 | F4: 2015 | G4: Totalsum
A5: ACC Ltd | B5: 100 | C5: 100 | D5: 100 | E5: 100 | F5: 100 | G5: 500
A6: Fixed Cost | B6: 27 | C6: 26 | D6: 29 | E6: 29 | F6: 30 | G6: 141
A7: Freight & Forwarding | B7: 20 | C7: 20 | D7: 21 | E7: 22 | F7: 23 | G7: 106
A8: Other variable cost | B8: 15 | C8: 18 | D8: 22 | E8: 20 | F8: 19 | G8: 94
A9: Power & Fuel | B9: 23 | C9: 21 | D9: 21 | E9: 21 | F9: 20 | G9: 106
A10: Profit | B10: 15 | C10: 15 | D10: 7 | E10: 8 | F10: 8 | G10: 53
A11: Ambuja Cement | B11: 100 | C11: 100 | D11: 100 | E11: 100 | F11: 100 | G11: 500
A12: Fixed Cost | B12: 25 | C12: 25 | D12: 27 | E12: 27 | F12: 30 | G12: 134
A13: Freight & Forwarding | B13: 23 | C13: 23 | D13: 25 | E13: 24 | F13: 27 | G13: 122
A14: Other variable cost | B14: 11 | C14: 9 | D14: 13 | E14: 12 | F14: 11 | G14: 56
A15: Power & Fuel | B15: 23 | C15: 24 | D15: 22 | E15: 23 | F15: 22 | G15: 114
A16: Profit | B16: 18 | C16: 19 | D16: 13 | E16: 14 | F16: 10 | G16: 74
A17: JK Lakshmi Cement | B17: 100 | C17: 100 | D17: 100 | E17: 100 | F17: 100 | G17: 500
A18: Fixed Cost | B18: 19 | C18: 20 | D18: 19 | E18: 19 | F18: 18 | G18: 95
A19: Freight & Forwarding | B19: 20 | C19: 19 | D19: 21 | E19: 22 | F19: 22 | G19: 104
A20: Other variable cost | B20: 23 | C20: 25 | D20: 26 | E20: 30 | F20: 29 | G20: 133
A21: Power & Fuel | B21: 30 | C21: 24 | D21: 20 | E21: 21 | F21: 21 | G21: 116
A22: Profit | B22: 8 | C22: 12 | D22: 14 | E22: 8 | F22: 10 | G22: 52
A23: Ultratech Cement | B23: 102 | C23: 100 | D23: 90 | E23: 95 | F23: 96 | G23: 483
A24: Fixed Cost | B24: 24 | C24: 22 | D24: 22 | E24: 24 | F24: 24 | G24: 116
A25: Freight & Forwarding | B25: 22 | C25: 20 | D25: 21 | E25: 23 | F25: 24 | G25: 110
A26: Other variable cost | B26: 16 | C26: 17 | D26: 18 | E26: 19 | F26: 18 | G26: 88
A27: Power & Fuel | B27: 23 | C27: 24 | D27: 21 | E27: 20 | F27: 21 | G27: 109
A28: Profit | B28: 17 | C28: 17 | D28: 8 | E28: 9 | F28: 9 | G28: 60
A29: Totalsum | B29: 402 | C29: 400 | D29: 390 | E29: 395 | F29: 396 | G29: 1983

Sheet Raw data
C3: Company | D3: Year | E3: Variable | F3: Value
C4: ACC Ltd | D4: 2011 | E4: Other variable cost | F4: 15
C5: ACC Ltd | D5: 2011 | E5: Power & Fuel | F5: 23
C6: ACC Ltd | D6: 2011 | E6: Freight & Forwarding | F6: 20
C7: ACC Ltd | D7: 2011 | E7: Fixed Cost | F7: 27
C8: ACC Ltd | D8: 2011 | E8: Profit | F8: 15
C9: Ultratech Cement | D9: 2011 | E9: Other variable cost | F9: 16
C10: Ultratech Cement | D10: 2011 | E10: Power & Fuel | F10: 23
C11: Ultratech Cement | D11: 2011 | E11: Freight & Forwarding | F11: 22
C12: Ultratech Cement | D12: 2011 | E12: Fixed Cost | F12: 24
C13: Ultratech Cement | D13: 2011 | E13: Profit | F13: 17
C14: Ambuja Cement | D14: 2011 | E14: Other variable cost | F14: 11
C15: Ambuja Cement | D15: 2011 | E15: Power & Fuel | F15: 23
C16: Ambuja Cement | D16: 2011 | E16: Freight & Forwarding | F16: 23
C17: Ambuja Cement | D17: 2011 | E17: Fixed Cost | F17: 25
C18: Ambuja Cement | D18: 2011 | E18: Profit | F18: 18
C19: JK Lakshmi Cement | D19: 2011 | E19: Other variable cost | F19: 23
C20: JK Lakshmi Cement | D20: 2011 | E20: Power & Fuel | F20: 30
C21: JK Lakshmi Cement | D21: 2011 | E21: Freight & Forwarding | F21: 20
C22: JK Lakshmi Cement | D22: 2011 | E22: Fixed Cost | F22: 19
C23: JK Lakshmi Cement | D23: 2011 | E23: Profit | F23: 8
C24: ACC Ltd | D24: 2012 | E24: Other variable cost | F24: 18
C25: ACC Ltd | D25: 2012 | E25: Power & Fuel | F25: 21
C26: ACC Ltd | D26: 2012 | E26: Freight & Forwarding | F26: 20
C27: ACC Ltd | D27: 2012 | E27: Fixed Cost | F27: 26
C28: ACC Ltd | D28: 2012 | E28: Profit | F28: 15
C29: Ultratech Cement | D29: 2012 | E29: Other variable cost | F29: 17
C30: Ultratech Cement | D30: 2012 | E30: Power & Fuel | F30: 24
C31: Ultratech Cement | D31: 2012 | E31: Freight & Forwarding | F31: 20
C32: Ultratech Cement | D32: 2012 | E32: Fixed Cost | F32: 22
C33: Ultratech Cement | D33: 2012 | E33: Profit | F33: 17
C34: Ambuja Cement | D34: 2012 | E34: Other variable cost | F34: 9
C35: Ambuja Cement | D35: 2012 | E35: Power & Fuel | F35: 24
C36: Ambuja Cement | D36: 2012 | E36: Freight & Forwarding | F36: 23
C37: Ambuja Cement | D37: 2012 | E37: Fixed Cost | F37: 25
C38: Ambuja Cement | D38: 2012 | E38: Profit | F38: 19
C39: JK Lakshmi Cement | D39: 2012 | E39: Other variable cost | F39: 25
C40: JK Lakshmi Cement | D40: 2012 | E40: Power & Fuel | F40: 24
C41: JK Lakshmi Cement | D41: 2012 | E41: Freight & Forwarding | F41: 19
C42: JK Lakshmi Cement | D42: 2012 | E42: Fixed Cost | F42: 20
C43: JK Lakshmi Cement | D43: 2012 | E43: Profit | F43: 12
C44: ACC Ltd | D44: 2013 | E44: Other variable cost | F44: 22
C45: ACC Ltd | D45: 2013 | E45: Power & Fuel | F45: 21
C46: ACC Ltd | D46: 2013 | E46: Freight & Forwarding | F46: 21
C47: ACC Ltd | D47: 2013 | E47: Fixed Cost | F47: 29
C48: ACC Ltd | D48: 2013 | E48: Profit | F48: 7
C49: Ultratech Cement | D49: 2013 | E49: Other variable cost | F49: 18
C50: Ultratech Cement | D50: 2013 | E50: Power & Fuel | F50: 21
C51: Ultratech Cement | D51: 2013 | E51: Freight & Forwarding | F51: 21
C52: Ultratech Cement | D52: 2013 | E52: Fixed Cost | F52: 22
C53: Ultratech Cement | D53: 2013 | E53: Profit | F53: 8
C54: Ambuja Cement | D54: 2013 | E54: Other variable cost | F54: 13
C55: Ambuja Cement | D55: 2013 | E55: Power & Fuel | F55: 22
C56: Ambuja Cement | D56: 2013 | E56: Freight & Forwarding | F56: 25
C57: Ambuja Cement | D57: 2013 | E57: Fixed Cost | F57: 27
C58: Ambuja Cement | D58: 2013 | E58: Profit | F58: 13
C59: JK Lakshmi Cement | D59: 2013 | E59: Other variable cost | F59: 26
C60: JK Lakshmi Cement | D60: 2013 | E60: Power & Fuel | F60: 20
C61: JK Lakshmi Cement | D61: 2013 | E61: Freight & Forwarding | F61: 21
C62: JK Lakshmi Cement | D62: 2013 | E62: Fixed Cost | F62: 19
C63: JK Lakshmi Cement | D63: 2013 | E63: Profit | F63: 14
C64: ACC Ltd | D64: 2014 | E64: Other variable cost | F64: 20
C65: ACC Ltd | D65: 2014 | E65: Power & Fuel | F65: 21
C66: ACC Ltd | D66: 2014 | E66: Freight & Forwarding | F66: 22
C67: ACC Ltd | D67: 2014 | E67: Fixed Cost | F67: 29
C68: ACC Ltd | D68: 2014 | E68: Profit | F68: 8
C69: Ultratech Cement | D69: 2014 | E69: Other variable cost | F69: 19
C70: Ultratech Cement | D70: 2014 | E70: Power & Fuel | F70: 20
C71: Ultratech Cement | D71: 2014 | E71: Freight & Forwarding | F71: 23
C72: Ultratech Cement | D72: 2014 | E72: Fixed Cost | F72: 24
C73: Ultratech Cement | D73: 2014 | E73: Profit | F73: 9
C74: Ambuja Cement | D74: 2014 | E74: Other variable cost | F74: 12
C75: Ambuja Cement | D75: 2014 | E75: Power & Fuel | F75: 23
C76: Ambuja Cement | D76: 2014 | E76: Freight & Forwarding | F76: 24
C77: Ambuja Cement | D77: 2014 | E77: Fixed Cost | F77: 27
C78: Ambuja Cement | D78: 2014 | E78: Profit | F78: 14
C79: JK Lakshmi Cement | D79: 2014 | E79: Other variable cost | F79: 30
C80: JK Lakshmi Cement | D80: 2014 | E80: Power & Fuel | F80: 21
C81: JK Lakshmi Cement | D81: 2014 | E81: Freight & Forwarding | F81: 22
C82: JK Lakshmi Cement | D82: 2014 | E82: Fixed Cost | F82: 19
C83: JK Lakshmi Cement | D83: 2014 | E83: Profit | F83: 8
C84: ACC Ltd | D84: 2015 | E84: Other variable cost | F84: 19
C85: ACC Ltd | D85: 2015 | E85: Power & Fuel | F85: 20
C86: ACC Ltd | D86: 2015 | E86: Freight & Forwarding | F86: 23
C87: ACC Ltd | D87: 2015 | E87: Fixed Cost | F87: 30
C88: ACC Ltd | D88: 2015 | E88: Profit | F88: 8
C89: Ultratech Cement | D89: 2015 | E89: Other variable cost | F89: 18
C90: Ultratech Cement | D90: 2015 | E90: Power & Fuel | F90: 21
C91: Ultratech Cement | D91: 2015 | E91: Freight & Forwarding | F91: 24
C92: Ultratech Cement | D92: 2015 | E92: Fixed Cost | F92: 24
C93: Ultratech Cement | D93: 2015 | E93: Profit | F93: 9
C94: Ambuja Cement | D94: 2015 | E94: Other variable cost | F94: 11
C95: Ambuja Cement | D95: 2015 | E95: Power & Fuel | F95: 22
C96: Ambuja Cement | D96: 2015 | E96: Freight & Forwarding | F96: 27
C97: Ambuja Cement | D97: 2015 | E97: Fixed Cost | F97: 30
C98: Ambuja Cement | D98: 2015 | E98: Profit | F98: 10
C99: JK Lakshmi Cement | D99: 2015 | E99: Other variable cost | F99: 29
C100: JK Lakshmi Cement | D100: 2015 | E100: Power & Fuel | F100: 21
C101: JK Lakshmi Cement | D101: 2015 | E101: Freight & Forwarding | F101: 22
C102: JK Lakshmi Cement | D102: 2015 | E102: Fixed Cost | F102: 18
C103: JK Lakshmi Cement | D103: 2015 | E103: Profit | F103: 10

Sheet All company
A3: Summer av Value | C3: Year
A4: Variable | B4: Company | C4: 2011 | D4: 2012 | E4: 2013 | F4: 2014 | G4: 2015 | H4: Totalsum
A5: Fixed Cost | B5: ACC Ltd | C5: 27 | D5: 26 | E5: 29 | F5: 29 | G5: 30 | H5: 141
B6: Ambuja Cement | C6: 25 | D6: 25 | E6: 27 | F6: 27 | G6: 30 | H6: 134
B7: JK Lakshmi Cement | C7: 19 | D7: 20 | E7: 19 | F7: 19 | G7: 18 | H7: 95
B8: Ultratech Cement | C8: 24 | D8: 22 | E8: 22 | F8: 24 | G8: 24 | H8: 116
A9: Freight & Forwarding | B9: ACC Ltd | C9: 20 | D9: 20 | E9: 21 | F9: 22 | G9: 23 | H9: 106
B10: Ambuja Cement | C10: 23 | D10: 23 | E10: 25 | F10: 24 | G10: 27 | H10: 122
B11: JK Lakshmi Cement | C11: 20 | D11: 19 | E11: 21 | F11: 22 | G11: 22 | H11: 104
B12: Ultratech Cement | C12: 22 | D12: 20 | E12: 21 | F12: 23 | G12: 24 | H12: 110
A13: Other variable cost | B13: ACC Ltd | C13: 15 | D13: 18 | E13: 22 | F13: 20 | G13: 19 | H13: 94
B14: Ambuja Cement | C14: 11 | D14: 9 | E14: 13 | F14: 12 | G14: 11 | H14: 56
B15: JK Lakshmi Cement | C15: 23 | D15: 25 | E15: 26 | F15: 30 | G15: 29 | H15: 133
B16: Ultratech Cement | C16: 16 | D16: 17 | E16: 18 | F16: 19 | G16: 18 | H16: 88
A17: Power & Fuel | B17: ACC Ltd | C17: 23 | D17: 21 | E17: 21 | F17: 21 | G17: 20 | H17: 106
B18: Ambuja Cement | C18: 23 | D18: 24 | E18: 22 | F18: 23 | G18: 22 | H18: 114
B19: JK Lakshmi Cement | C19: 30 | D19: 24 | E19: 20 | F19: 21 | G19: 21 | H19: 116
B20: Ultratech Cement | C20: 23 | D20: 24 | E20: 21 | F20: 20 | G20: 21 | H20: 109
A21: Profit | B21: ACC Ltd | C21: 15 | D21: 15 | E21: 7 | F21: 8 | G21: 8 | H21: 53
B22: Ambuja Cement | C22: 18 | D22: 19 | E22: 13 | F22: 14 | G22: 10 | H22: 74
B23: JK Lakshmi Cement | C23: 8 | D23: 12 | E23: 14 | F23: 8 | G23: 10 | H23: 52
B24: Ultratech Cement | C24: 17 | D24: 17 | E24: 8 | F24: 9 | G24: 9 | H24: 60
A25: Totalsum | C25: 402 | D25: 400 | E25: 390 | F25: 395 | G25: 396 | H25: 1983

Sheet Dashboard
B1: Fixed Cost | C1: Profit | D1: Power & Fuel | E1: Other variable Cost | F1: Freight & Forwarding
J2: Δ% | K2: Rank
B3: ="Between ("&Calculation!D3&"-"&Calculation!E3&")" -> Between (2011-2015) | J3: =+Calculation!Y14 -> 0.15 | K3: =+Calculation!Z14 -> 2
J4: =+Calculation!Y16 -> 0.1739130435 | K4: =+Calculation!Z16 -> 1
J5: =+Calculation!Y17 -> 0.1 | K5: =+Calculation!Z17 -> 3
J6: =+Calculation!Y15 -> 0.09090909091 | K6: =+Calculation!Z15 -> 4
J12: =+'All company '!B4 -> Company | K12: =+'All company '!C4 -> 2011 | L12: =+'All company '!D4 -> 2012 | M12: =+'All company '!E4 -> 2013 | N12: =+'All company '!F4 -> 2014 | O12: =+'All company '!G4 -> 2015 | P12: =+'All company '!H4 -> Totalsum
I13: =+'All company '!A5 -> Fixed Cost | J13: =+'All company '!B5 -> ACC Ltd | K13: =+'All company '!C5 -> 27 | L13: =+'All company '!D5 -> 26 | M13: =+'All company '!E5 -> 29 | N13: =+'All company '!F5 -> 29 | O13: =+'All company '!G5 -> 30 | P13: =+'All company '!H5 -> 141
I14: Fixed Cost | J14: =+'All company '!B6 -> Ambuja Cement | K14: =+'All company '!C6 -> 25 | L14: =+'All company '!D6 -> 25 | M14: =+'All company '!E6 -> 27 | N14: =+'All company '!F6 -> 27 | O14: =+'All company '!G6 -> 30 | P14: =+'All company '!H6 -> 134
I15: Fixed Cost | J15: =+'All company '!B7 -> JK Lakshmi Cement | K15: =+'All company '!C7 -> 19 | L15: =+'All company '!D7 -> 20 | M15: =+'All company '!E7 -> 19 | N15: =+'All company '!F7 -> 19 | O15: =+'All company '!G7 -> 18 | P15: =+'All company '!H7 -> 95
I16: Fixed Cost | J16: =+'All company '!B8 -> Ultratech Cement | K16: =+'All company '!C8 -> 24 | L16: =+'All company '!D8 -> 22 | M16: =+'All company '!E8 -> 22 | N16: =+'All company '!F8 -> 24 | O16: =+'All company '!G8 -> 24 | P16: =+'All company '!H8 -> 116
I17: =+'All company '!A9 -> Freight & Forwarding | J17: =+'All company '!B9 -> ACC Ltd | K17: =+'All company '!C9 -> 20 | L17: =+'All company '!D9 -> 20 | M17: =+'All company '!E9 -> 21 | N17: =+'All company '!F9 -> 22 | O17: =+'All company '!G9 -> 23 | P17: =+'All company '!H9 -> 106
I18: Freight & Forwarding | J18: =+'All company '!B10 -> Ambuja Cement | K18: =+'All company '!C10 -> 23 | L18: =+'All company '!D10 -> 23 | M18: =+'All company '!E10 -> 25 | N18: =+'All company '!F10 -> 24 | O18: =+'All company '!G10 -> 27 | P18: =+'All company '!H10 -> 122
I19: Freight & Forwarding | J19: =+'All company '!B11 -> JK Lakshmi Cement | K19: =+'All company '!C11 -> 20 | L19: =+'All company '!D11 -> 19 | M19: =+'All company '!E11 -> 21 | N19: =+'All company '!F11 -> 22 | O19: =+'All company '!G11 -> 22 | P19: =+'All company '!H11 -> 104
I20: Freight & Forwarding | J20: =+'All company '!B12 -> Ultratech Cement | K20: =+'All company '!C12 -> 22 | L20: =+'All company '!D12 -> 20 | M20: =+'All company '!E12 -> 21 | N20: =+'All company '!F12 -> 23 | O20: =+'All company '!G12 -> 24 | P20: =+'All company '!H12 -> 110
I21: =+'All company '!A13 -> Other variable cost | J21: =+'All company '!B13 -> ACC Ltd | K21: =+'All company '!C13 -> 15 | L21: =+'All company '!D13 -> 18 | M21: =+'All company '!E13 -> 22 | N21: =+'All company '!F13 -> 20 | O21: =+'All company '!G13 -> 19 | P21: =+'All company '!H13 -> 94
I22: Other variable cost | J22: =+'All company '!B14 -> Ambuja Cement | K22: =+'All company '!C14 -> 11 | L22: =+'All company '!D14 -> 9 | M22: =+'All company '!E14 -> 13 | N22: =+'All company '!F14 -> 12 | O22: =+'All company '!G14 -> 11 | P22: =+'All company '!H14 -> 56
I23: Other variable cost | J23: =+'All company '!B15 -> JK Lakshmi Cement | K23: =+'All company '!C15 -> 23 | L23: =+'All company '!D15 -> 25 | M23: =+'All company '!E15 -> 26 | N23: =+'All company '!F15 -> 30 | O23: =+'All company '!G15 -> 29 | P23: =+'All company '!H15 -> 133
I24: Other variable cost | J24: =+'All company '!B16 -> Ultratech Cement | K24: =+'All company '!C16 -> 16 | L24: =+'All company '!D16 -> 17 | M24: =+'All company '!E16 -> 18 | N24: =+'All company '!F16 -> 19 | O24: =+'All company '!G16 -> 18 | P24: =+'All company '!H16 -> 88
I25: =+'All company '!A17 -> Power & Fuel | J25: =+'All company '!B17 -> ACC Ltd | K25: =+'All company '!C17 -> 23 | L25: =+'All company '!D17 -> 21 | M25: =+'All company '!E17 -> 21 | N25: =+'All company '!F17 -> 21 | O25: =+'All company '!G17 -> 20 | P25: =+'All company '!H17 -> 106
I26: Power & Fuel | J26: =+'All company '!B18 -> Ambuja Cement | K26: =+'All company '!C18 -> 23 | L26: =+'All company '!D18 -> 24 | M26: =+'All company '!E18 -> 22 | N26: =+'All company '!F18 -> 23 | O26: =+'All company '!G18 -> 22 | P26: =+'All company '!H18 -> 114
I27: Power & Fuel | J27: =+'All company '!B19 -> JK Lakshmi Cement | K27: =+'All company '!C19 -> 30 | L27: =+'All company '!D19 -> 24 | M27: =+'All company '!E19 -> 20 | N27: =+'All company '!F19 -> 21 | O27: =+'All company '!G19 -> 21 | P27: =+'All company '!H19 -> 116
I28: Power & Fuel | J28: =+'All company '!B20 -> Ultratech Cement | K28: =+'All company '!C20 -> 23 | L28: =+'All company '!D20 -> 24 | M28: =+'All company '!E20 -> 21 | N28: =+'All company '!F20 -> 20 | O28: =+'All company '!G20 -> 21 | P28: =+'All company '!H20 -> 109
I29: =+'All company '!A21 -> Profit | J29: =+'All company '!B21 -> ACC Ltd | K29: =+'All company '!C21 -> 15 | L29: =+'All company '!D21 -> 15 | M29: =+'All company '!E21 -> 7 | N29: =+'All company '!F21 -> 8 | O29: =+'All company '!G21 -> 8 | P29: =+'All company '!H21 -> 53
I30: Profit | J30: =+'All company '!B22 -> Ambuja Cement | K30: =+'All company '!C22 -> 18 | L30: =+'All company '!D22 -> 19 | M30: =+'All company '!E22 -> 13 | N30: =+'All company '!F22 -> 14 | O30: =+'All company '!G22 -> 10 | P30: =+'All company '!H22 -> 74
I31: Profit | J31: =+'All company '!B23 -> JK Lakshmi Cement | K31: =+'All company '!C23 -> 8 | L31: =+'All company '!D23 -> 12 | M31: =+'All company '!E23 -> 14 | N31: =+'All company '!F23 -> 8 | O31: =+'All company '!G23 -> 10 | P31: =+'All company '!H23 -> 52
I32: Profit | J32: =+'All company '!B24 -> Ultratech Cement | K32: =+'All company '!C24 -> 17 | L32: =+'All company '!D24 -> 17 | M32: =+'All company '!E24 -> 8 | N32: =+'All company '!F24 -> 9 | O32: =+'All company '!G24 -> 9 | P32: =+'All company '!H24 -> 60
P33: TRUE

Sheet Ark1 (hidden)

Sheet Calculation
D2: First year | E2: Last year
B3: Year count | C3: =COUNT('Fixed Cost'!A:A) -> 5 | D3: ='Fixed Cost'!$A$5 -> 2011 | E3: =INDEX('Fixed Cost'!A:A,YearCount+4) -> 2015
B4: Company count | C4: =COUNT('Fixed Cost'!A:A)-1 -> 4
B6: Selected chart type | C6: Freight & Forwarding
B7: Chart number | C7: =MATCH(Chart.selection,Chart.choicesdash2,0) -> 5
B8: chart name | C8: =+CHOOSE(C7,"FixedCost","Profit","Power&Fuel","OthervariableCost","Freight&Forwarding")&"Chart" -> Freight&ForwardingChart | G8: Chart.selection
G9: Chart.choicesdash
G10: Chart.name
C12: Fixed Cost | D12: Fixed Cost | E12: Profit | F12: Profit | G12: Power & Fuel | H12: Power & Fuel | I12: Other Variable Cost | J12: Other Variable Cost | K12: Freight & Forwarding | L12: Freight & Forwarding | Y12: Ti display
B13: Company | C13: First year | D13: last year | E13: First year | F13: last year | G13: First year | H13: last year | I13: First year | J13: last year | K13: First year | L13: last year | N13: % Change | O13: Rank | P13: % Change | Q13: Rank | R13: % Change | S13: Rank | T13: % Change | U13: Rank | V13: % Change | W13: Rank | Y13: % change
B14: ACC Ltd | C14: =GETPIVOTDATA("value",'All company '!$A$3,"Company",$B14,"year",FirstYear,"variable",C$12) -> 27 | D14: =GETPIVOTDATA("value",'All company '!$A$3,"Company",$B14,"year",LastYear,"variable",D$12) -> 30 | E14: =GETPIVOTDATA("value",'All company '!$A$3,"Company",$B14,"year",FirstYear,"variable",E$12) -> 15 | F14: =GETPIVOTDATA("value",'All company '!$A$3,"Company",$B14,"year",LastYear,"variable",F$12) -> 8 | G14: =GETPIVOTDATA("value",'All company '!$A$3,"Company",$B14,"year",FirstYear,"variable",G$12) -> 23 | H14: =GETPIVOTDATA("value",'All company '!$A$3,"Company",$B14,"year",LastYear,"variable",H$12) -> 20 | I14: =GETPIVOTDATA("value",'All company '!$A$3,"Company",$B14,"year",FirstYear,"variable",I$12) -> 15 | J14: =GETPIVOTDATA("value",'All company '!$A$3,"Company",$B14,"year",LastYear,"variable",J$12) -> 19 | K14: =GETPIVOTDATA("value",'All company '!$A$3,"Company",$B14,"year",FirstYear,"variable",K$12) -> 20 | L14: =GETPIVOTDATA("value",'All company '!$A$3,"Company",$B14,"year",LastYear,"variable",L$12) -> 23 | N14: =D14/C14-1 -> 0.1111111111 | O14: =_xlfn.RANK.EQ(N14,N$14:N$17) -> 2 | P14: =F14/E14-1 -> -0.4666666667 | Q14: =_xlfn.RANK.EQ(P14,P$14:P$17) -> 3 | R14: =H14/G14-1 -> -0.1304347826 | S14: =_xlfn.RANK.EQ(R14,R$14:R$17) -> 3 | T14: =J14/I14-1 -> 0.2666666667 | U14: =_xlfn.RANK.EQ(T14,T$14:T$17) -> 1 | V14: =L14/K14-1 -> 0.15 | W14: =_xlfn.RANK.EQ(V14,V$14:V$17) -> 2 | Y14: =INDEX($N14:$W14,($C$7-1)*2+1) -> 0.15 | Z14: =INDEX($N14:$W14,($C$7)*2) -> 2
B15: Ultratech Cement | C15: =GETPIVOTDATA("value",'All company '!$A$3,"Company",$B15,"year",FirstYear,"variable",C$12) -> 24 | D15: =GETPIVOTDATA("value",'All company '!$A$3,"Company",$B15,"year",LastYear,"variable",D$12) -> 24 | E15: =GETPIVOTDATA("value",'All company '!$A$3,"Company",$B15,"year",FirstYear,"variable",E$12) -> 17 | F15: =GETPIVOTDATA("value",'All company '!$A$3,"Company",$B15,"year",LastYear,"variable",F$12) -> 9 | G15: =GETPIVOTDATA("value",'All company '!$A$3,"Company",$B15,"year",FirstYear,"variable",G$12) -> 23 | H15: =GETPIVOTDATA("value",'All company '!$A$3,"Company",$B15,"year",LastYear,"variable",H$12) -> 21 | I15: =GETPIVOTDATA("value",'All company '!$A$3,"Company",$B15,"year",FirstYear,"variable",I$12) -> 16 | J15: =GETPIVOTDATA("value",'All company '!$A$3,"Company",$B15,"year",LastYear,"variable",J$12) -> 18 | K15: =GETPIVOTDATA("value",'All company '!$A$3,"Company",$B15,"year",FirstYear,"variable",K$12) -> 22 | L15: =GETPIVOTDATA("value",'All company '!$A$3,"Company",$B15,"year",LastYear,"variable",L$12) -> 24 | N15: =D15/C15-1 -> 0 | O15: =_xlfn.RANK.EQ(N15,N$14:N$17) -> 3 | P15: =F15/E15-1 -> -0.4705882353 | Q15: =_xlfn.RANK.EQ(P15,P$14:P$17) -> 4 | R15: =H15/G15-1 -> -0.08695652174 | S15: =_xlfn.RANK.EQ(R15,R$14:R$17) -> 2 | T15: =J15/I15-1 -> 0.125 | U15: 3 | V15: =L15/K15-1 -> 0.09090909091 | W15: 4 | Y15: =INDEX($N15:$W15,($C$7-1)*2+1) -> 0.09090909091 | Z15: =INDEX($N15:$W15,($C$7)*2) -> 4
B16: Ambuja Cement | C16: =GETPIVOTDATA("value",'All company '!$A$3,"Company",$B16,"year",FirstYear,"variable",C$12) -> 25 | D16: =GETPIVOTDATA("value",'All company '!$A$3,"Company",$B16,"year",LastYear,"variable",D$12) -> 30 | E16: =GETPIVOTDATA("value",'All company '!$A$3,"Company",$B16,"year",FirstYear,"variable",E$12) -> 18 | F16: =GETPIVOTDATA("value",'All company '!$A$3,"Company",$B16,"year",LastYear,"variable",F$12) -> 10 | G16: =GETPIVOTDATA("value",'All company '!$A$3,"Company",$B16,"year",FirstYear,"variable",G$12) -> 23 | H16: =GETPIVOTDATA("value",'All company '!$A$3,"Company",$B16,"year",LastYear,"variable",H$12) -> 22 | I16: =GETPIVOTDATA("value",'All company '!$A$3,"Company",$B16,"year",FirstYear,"variable",I$12) -> 11 | J16: =GETPIVOTDATA("value",'All company '!$A$3,"Company",$B16,"year",LastYear,"variable",J$12) -> 11 | K16: =GETPIVOTDATA("value",'All company '!$A$3,"Company",$B16,"year",FirstYear,"variable",K$12) -> 23 | L16: =GETPIVOTDATA("value",'All company '!$A$3,"Company",$B16,"year",LastYear,"variable",L$12) -> 27 | N16: =D16/C16-1 -> 0.2 | O16: =_xlfn.RANK.EQ(N16,N$14:N$17) -> 1 | P16: =F16/E16-1 -> -0.4444444444 | Q16: 2 | R16: -0.04347826087 | S16: =_xlfn.RANK.EQ(R16,R$14:R$17) -> 1 | T16: 0 | U16: 4 | V16: 0.1739130435 | W16: =_xlfn.RANK.EQ(V16,V$14:V$17) -> 1 | Y16: =INDEX($N16:$W16,($C$7-1)*2+1) -> 0.1739130435 | Z16: 1
B17: JK Lakshmi Cement | C17: =GETPIVOTDATA("value",'All company '!$A$3,"Company",$B17,"year",FirstYear,"variable",C$12) -> 19 | D17: =GETPIVOTDATA("value",'All company '!$A$3,"Company",$B17,"year",LastYear,"variable",D$12) -> 18 | E17: =GETPIVOTDATA("value",'All company '!$A$3,"Company",$B17,"year",FirstYear,"variable",E$12) -> 8 | F17: =GETPIVOTDATA("value",'All company '!$A$3,"Company",$B17,"year",LastYear,"variable",F$12) -> 10 | G17: =GETPIVOTDATA("value",'All company '!$A$3,"Company",$B17,"year",FirstYear,"variable",G$12) -> 30 | H17: =GETPIVOTDATA("value",'All company '!$A$3,"Company",$B17,"year",LastYear,"variable",H$12) -> 21 | I17: =GETPIVOTDATA("value",'All company '!$A$3,"Company",$B17,"year",FirstYear,"variable",I$12) -> 23 | J17: =GETPIVOTDATA("value",'All company '!$A$3,"Company",$B17,"year",LastYear,"variable",J$12) -> 29 | K17: =GETPIVOTDATA("value",'All company '!$A$3,"Company",$B17,"year",FirstYear,"variable",K$12) -> 20 | L17: =GETPIVOTDATA("value",'All company '!$A$3,"Company",$B17,"year",LastYear,"variable",L$12) -> 22 | N17: -0.05263157895 | O17: =_xlfn.RANK.EQ(N17,N$14:N$17) -> 4 | P17: 0.25 | Q17: =_xlfn.RANK.EQ(P17,P$14:P$17) -> 1 | R17: -0.3 | S17: =_xlfn.RANK.EQ(R17,R$14:R$17) -> 4 | T17: 0.2608695652 | U17: =_xlfn.RANK.EQ(T17,T$14:T$17) -> 2 | V17: 0.1 | W17: 3 | Y17: 0.1 | Z17: 3
